[Event "Late-Titled-Tuesday-Blitz-June-04-2024"]
[Site "Chess.com"]
[Date "2024.06.04"]
[Round "4"]
[White "dasatcu90"]
[Black "1g60-1"]
[Result "1-0"]
[WhiteElo "2252"]
[BlackElo "2448"]
[TimeControl "180+1"]
[EndTime "14:38:25 PDT"]
[Termination "dasatcu90 won by resignation"]

1. d4 {[%clk 0:03:00.9]} 1... e6 {[%clk 0:03:00]} 2. Nf3 {[%clk 0:03:01]} 2...
f5 {[%clk 0:03:00]} 3. g3 {[%clk 0:03:01.3]} 3... Nf6 {[%clk 0:03:00.3]} 4. Bg2
{[%clk 0:03:01.7]} 4... Be7 {[%clk 0:03:01]} 5. Nbd2 {[%clk 0:03:00.4]} 5... O-O
{[%clk 0:02:57.8]} 6. b3 {[%clk 0:03:00.5]} 6... a5 {[%clk 0:02:57.7]} 7. Bb2
{[%clk 0:03:00.5]} 7... a4 {[%clk 0:02:58]} 8. c4 {[%clk 0:02:58.6]} 8... a3
{[%clk 0:02:57.7]} 9. Bc3 {[%clk 0:02:58.5]} 9... d5 {[%clk 0:02:56.9]} 10. O-O
{[%clk 0:02:56.8]} 10... Ne4 {[%clk 0:02:55.5]} 11. Nxe4 {[%clk 0:02:51.3]}
11... fxe4 {[%clk 0:02:55.2]} 12. Ne5 {[%clk 0:02:51.4]} 12... Nd7 {[%clk
0:02:51]} 13. Nxd7 {[%clk 0:02:38.8]} 13... Bxd7 {[%clk 0:02:48]} 14. f3 {[%clk
0:02:39.2]} 14... exf3 {[%clk 0:02:46.5]} 15. exf3 {[%clk 0:02:32]} 15... c6
{[%clk 0:02:37]} 16. f4 {[%clk 0:02:31.3]} 16... Bf6 {[%clk 0:02:34.9]} 17. Qd3
{[%clk 0:02:28.3]} 17... Qb6 {[%clk 0:02:30.5]} 18. c5 {[%clk 0:02:12.1]} 18...
Qc7 {[%clk 0:02:27.3]} 19. Rae1 {[%clk 0:02:06.6]} 19... b6 {[%clk 0:02:25.9]}
20. b4 {[%clk 0:02:00.2]} 20... bxc5 {[%clk 0:02:22.7]} 21. dxc5 {[%clk
0:01:42.8]} 21... Bc8 {[%clk 0:02:14.8]} 22. Rf3 {[%clk 0:01:29.9]} 22... Ba6
{[%clk 0:02:03.8]} 23. Qd2 {[%clk 0:01:28.6]} 23... Rae8 {[%clk 0:01:57.7]} 24.
Be5 {[%clk 0:01:27.7]} 24... Bxe5 {[%clk 0:01:56.2]} 25. Rxe5 {[%clk 0:01:27.4]}
25... Bc8 {[%clk 0:01:44.8]} 26. Rxa3 {[%clk 0:01:27]} 26... Qf7 {[%clk
0:01:40.9]} 27. Rae3 {[%clk 0:01:25.7]} 27... Qg6 {[%clk 0:01:39.1]} 28. Qd3
{[%clk 0:01:15.7]} 28... Qf6 {[%clk 0:01:30.5]} 29. a4 {[%clk 0:01:15]} 29...
Bd7 {[%clk 0:01:29.7]} 30. Bh3 {[%clk 0:00:54.4]} 30... Rb8 {[%clk 0:01:24.1]}
31. Qc3 {[%clk 0:00:43.6]} 31... h6 {[%clk 0:01:04.5]} 32. Bxe6+ {[%clk
0:00:41.4]} 32... Bxe6 {[%clk 0:01:02.3]} 33. Rxe6 {[%clk 0:00:42.3]} 33... Qf5
{[%clk 0:00:54.7]} 34. Rxc6 {[%clk 0:00:33.2]} 34... Qb1+ {[%clk 0:00:52.3]} 35.
Kg2 {[%clk 0:00:30.9]} 35... Rxb4 {[%clk 0:00:52.6]} 36. Re2 {[%clk 0:00:14.5]}
36... d4 {[%clk 0:00:42.2]} 37. Qc2 {[%clk 0:00:12.9]} 37... Qa1 {[%clk
0:00:34.8]} 38. Rd6 {[%clk 0:00:12.3]} 38... Rfb8 {[%clk 0:00:23.4]} 39. c6
{[%clk 0:00:11.8]} 39... Rc8 {[%clk 0:00:15.3]} 40. c7 {[%clk 0:00:11.9]} 1-0

[Event "Late-Titled-Tuesday-Blitz-June-04-2024"]
[Site "Chess.com"]
[Date "2024.06.04"]
[Round "4"]
[White "katharinareinecke"]
[Black "mfschulz"]
[Result "0-1"]
[WhiteElo "1962"]
[BlackElo "2240"]
[TimeControl "180+1"]
[EndTime "14:38:25 PDT"]
[Termination "mfschulz won on time"]

1. d4 {[%clk 0:03:00.9]} 1... Nf6 {[%clk 0:02:58.8]} 2. Nf3 {[%clk 0:03:00.8]}
2... c5 {[%clk 0:02:57.6]} 3. g3 {[%clk 0:02:54.7]} 3... g6 {[%clk 0:02:56.5]}
4. Bg2 {[%clk 0:02:54.1]} 4... Bg7 {[%clk 0:02:56.7]} 5. O-O {[%clk 0:02:54.1]}
5... O-O {[%clk 0:02:56.6]} 6. c4 {[%clk 0:02:53.5]} 6... cxd4 {[%clk
0:02:51.7]} 7. Nxd4 {[%clk 0:02:53.1]} 7... Nc6 {[%clk 0:02:51.7]} 8. Nxc6
{[%clk 0:02:45]} 8... bxc6 {[%clk 0:02:50.9]} 9. Nc3 {[%clk 0:02:41.5]} 9... Ba6
{[%clk 0:02:46.5]} 10. Qa4 {[%clk 0:02:37.9]} 10... Qb6 {[%clk 0:02:44.3]} 11.
Rb1 {[%clk 0:02:25.1]} 11... Rab8 {[%clk 0:02:44]} 12. b3 {[%clk 0:02:21.2]}
12... d6 {[%clk 0:02:42.4]} 13. Bb2 {[%clk 0:02:14.8]} 13... Bc8 {[%clk
0:02:31.3]} 14. Qxc6 {[%clk 0:02:11.2]} 14... Qxc6 {[%clk 0:02:29.6]} 15. Bxc6
{[%clk 0:02:10]} 15... Bf5 {[%clk 0:02:29]} 16. Rbc1 {[%clk 0:01:56.6]} 16... a5
{[%clk 0:02:23.9]} 17. Ba3 {[%clk 0:01:40.6]} 17... Rfc8 {[%clk 0:02:13.5]} 18.
Bg2 {[%clk 0:01:38]} 18... Bd7 {[%clk 0:02:09.8]} 19. Nd5 {[%clk 0:01:33.8]}
19... Kf8 {[%clk 0:02:06.9]} 20. e4 {[%clk 0:01:28.4]} 20... a4 {[%clk
0:02:01.5]} 21. b4 {[%clk 0:01:28.1]} 21... Ng4 {[%clk 0:01:45.2]} 22. c5 {[%clk
0:01:17.7]} 22... Ne5 {[%clk 0:01:41.9]} 23. f4 {[%clk 0:01:09.9]} 23... Nd3
{[%clk 0:01:36]} 24. Rb1 {[%clk 0:01:09.9]} 24... dxc5 {[%clk 0:01:33.2]} 25.
bxc5 {[%clk 0:01:06]} 25... Rxb1 {[%clk 0:01:30.7]} 26. Rxb1 {[%clk 0:01:03.5]}
26... Nxc5 {[%clk 0:01:30.5]} 27. Nb6 {[%clk 0:00:59.7]} 27... Bd4+ {[%clk
0:01:26.9]} 28. Kh1 {[%clk 0:00:47.7]} 28... Rc7 {[%clk 0:01:23.8]} 29. Rc1
{[%clk 0:00:42.1]} 29... Be6 {[%clk 0:01:09.7]} 30. Nxa4 {[%clk 0:00:27.6]}
30... Ra7 {[%clk 0:00:59.8]} 31. Nxc5 {[%clk 0:00:22.5]} 31... Rxa3 {[%clk
0:00:58.5]} 32. Nxe6+ {[%clk 0:00:19.4]} 32... fxe6 {[%clk 0:00:58.7]} 33. Rc8+
{[%clk 0:00:17.7]} 33... Kf7 {[%clk 0:00:58.2]} 34. Rc2 {[%clk 0:00:17.8]} 34...
e5 {[%clk 0:00:56.6]} 35. f5 {[%clk 0:00:17.1]} 35... Re3 {[%clk 0:00:54.3]} 36.
h3 {[%clk 0:00:15.4]} 36... h5 {[%clk 0:00:52.2]} 37. Rc1 {[%clk 0:00:12.3]}
37... Ra3 {[%clk 0:00:49.9]} 38. Rc2 {[%clk 0:00:10.7]} 38... g5 {[%clk
0:00:49.8]} 39. h4 {[%clk 0:00:10.5]} 39... Kf6 {[%clk 0:00:46.2]} 40. hxg5+
{[%clk 0:00:10.6]} 40... Kxg5 {[%clk 0:00:46.4]} 41. Kh2 {[%clk 0:00:11.1]}
41... h4 {[%clk 0:00:37.5]} 42. gxh4+ {[%clk 0:00:11]} 42... Kxh4 {[%clk
0:00:37.7]} 43. Bf1 {[%clk 0:00:09.5]} 43... Kg4 {[%clk 0:00:36.6]} 44. Be2+
{[%clk 0:00:08.3]} 44... Kf4 {[%clk 0:00:36.6]} 45. Bf1 {[%clk 0:00:05.6]} 45...
Ra8 {[%clk 0:00:34.1]} 0-1

[Event "Late-Titled-Tuesday-Blitz-June-04-2024"]
[Site "Chess.com"]
[Date "2024.06.04"]
[Round "4"]
[White "bascheyaro"]
[Black "Rud_Makarian"]
[Result "0-1"]
[WhiteElo "2799"]
[BlackElo "2991"]
[TimeControl "180+1"]
[EndTime "14:38:26 PDT"]
[Termination "Rud_Makarian won by resignation"]

1. d4 {[%clk 0:03:00.9]} 1... Nf6 {[%clk 0:02:59.2]} 2. Nf3 {[%clk 0:03:00.6]}
2... c5 {[%clk 0:02:59.2]} 3. c4 {[%clk 0:03:00.5]} 3... e6 {[%clk 0:02:55.1]}
4. Nc3 {[%clk 0:03:00.1]} 4... d5 {[%clk 0:02:47.2]} 5. dxc5 {[%clk 0:02:59.2]}
5... Bxc5 {[%clk 0:02:46.1]} 6. cxd5 {[%clk 0:02:59.3]} 6... exd5 {[%clk
0:02:45.9]} 7. e3 {[%clk 0:02:57.2]} 7... O-O {[%clk 0:02:45.8]} 8. Be2 {[%clk
0:02:57]} 8... Nc6 {[%clk 0:02:45]} 9. O-O {[%clk 0:02:57.1]} 9... a6 {[%clk
0:02:36.8]} 10. b3 {[%clk 0:02:55.8]} 10... d4 {[%clk 0:02:32.7]} 11. exd4
{[%clk 0:02:55.6]} 11... Nxd4 {[%clk 0:02:31.7]} 12. Nxd4 {[%clk 0:02:54.6]}
12... Bxd4 {[%clk 0:02:31]} 13. Bb2 {[%clk 0:02:54.9]} 13... Bf5 {[%clk
0:02:26.1]} 14. Bf3 {[%clk 0:02:44.9]} 14... Rc8 {[%clk 0:02:23.1]} 15. Na4
{[%clk 0:02:44.6]} 15... Bxb2 {[%clk 0:02:19.5]} 16. Nxb2 {[%clk 0:02:45.5]}
16... b5 {[%clk 0:02:01.3]} 17. a4 {[%clk 0:02:11.1]} 17... Qb6 {[%clk
0:01:59.6]} 18. axb5 {[%clk 0:02:09.9]} 18... axb5 {[%clk 0:01:59.6]} 19. Qe2
{[%clk 0:02:02.7]} 19... Rfe8 {[%clk 0:01:50.4]} 20. Qd2 {[%clk 0:02:03.1]}
20... Rc2 {[%clk 0:01:40]} 21. Qg5 {[%clk 0:02:03.2]} 21... Bg6 {[%clk
0:01:14.9]} 22. Nd1 {[%clk 0:01:53.2]} 22... h6 {[%clk 0:01:08.1]} 23. Qf4
{[%clk 0:01:43.5]} 23... Rd8 {[%clk 0:00:53.1]} 24. Ne3 {[%clk 0:01:39.9]} 24...
Rb2 {[%clk 0:00:53.1]} 25. Qb4 {[%clk 0:01:38.4]} 25... Rbd2 {[%clk 0:00:33.9]}
26. Nc4 {[%clk 0:01:34.5]} 26... R2d4 {[%clk 0:00:31.5]} 27. Ra5 {[%clk
0:01:11.5]} 27... Rb8 {[%clk 0:00:27.6]} 28. Nxb6 {[%clk 0:00:16.5]} 28... Rxb4
{[%clk 0:00:27.5]} 29. Nd5 {[%clk 0:00:17.2]} 29... Rxb3 {[%clk 0:00:27.4]} 30.
Nxf6+ {[%clk 0:00:17.5]} 30... gxf6 {[%clk 0:00:28.3]} 31. Rc1 {[%clk
0:00:17.5]} 31... b4 {[%clk 0:00:27]} 32. Kf1 {[%clk 0:00:15.6]} 32... Rxf3
{[%clk 0:00:16]} 33. gxf3 {[%clk 0:00:15.6]} 33... b3 {[%clk 0:00:16.6]} 0-1

[Event "Late-Titled-Tuesday-Blitz-June-04-2024"]
[Site "Chess.com"]
[Date "2024.06.04"]
[Round "4"]
[White "ChempionBg"]
[Black "ExchangeAB"]
[Result "0-1"]
[WhiteElo "2241"]
[BlackElo "2467"]
[TimeControl "180+1"]
[EndTime "14:38:26 PDT"]
[Termination "ExchangeAB won on time"]

1. d4 {[%clk 0:02:25.6]} 1... d5 {[%clk 0:02:59.9]} 2. c4 {[%clk 0:02:25.4]}
2... c6 {[%clk 0:03:00.4]} 3. Nf3 {[%clk 0:02:25.9]} 3... Nf6 {[%clk 0:03:00.5]}
4. g3 {[%clk 0:02:26.5]} 4... Bf5 {[%clk 0:03:00]} 5. Bg2 {[%clk 0:02:27.1]}
5... e6 {[%clk 0:03:00.1]} 6. O-O {[%clk 0:02:27.7]} 6... h6 {[%clk 0:03:00.6]}
7. Nc3 {[%clk 0:02:27.1]} 7... Nbd7 {[%clk 0:02:58.6]} 8. b3 {[%clk 0:02:25.7]}
8... Be7 {[%clk 0:02:56.9]} 9. Bb2 {[%clk 0:02:26.2]} 9... O-O {[%clk
0:02:57.4]} 10. Rc1 {[%clk 0:02:26.5]} 10... Ne4 {[%clk 0:02:57.7]} 11. Ne5
{[%clk 0:02:26]} 11... Nxe5 {[%clk 0:02:57.4]} 12. dxe5 {[%clk 0:02:25.8]} 12...
Nxc3 {[%clk 0:02:57.5]} 13. Bxc3 {[%clk 0:02:25]} 13... dxc4 {[%clk 0:02:57.5]}
14. bxc4 {[%clk 0:02:20.3]} 14... Qxd1 {[%clk 0:02:51.4]} 15. Rcxd1 {[%clk
0:02:19.6]} 15... Rfd8 {[%clk 0:02:52.3]} 16. e4 {[%clk 0:02:16.5]} 16... Bg4
{[%clk 0:02:50.9]} 17. f3 {[%clk 0:02:14]} 17... Bc5+ {[%clk 0:02:50.9]} 18. Kh1
{[%clk 0:02:14]} 18... Bh5 {[%clk 0:02:50.9]} 19. g4 {[%clk 0:02:00.3]} 19...
Bg6 {[%clk 0:02:49.9]} 20. Rb1 {[%clk 0:01:29.3]} 20... b6 {[%clk 0:02:49.1]}
21. Rfd1 {[%clk 0:01:28.3]} 21... Kf8 {[%clk 0:02:41.9]} 22. Bf1 {[%clk
0:01:27.6]} 22... Ke7 {[%clk 0:02:39.9]} 23. Kg2 {[%clk 0:01:26.9]} 23... Rxd1
{[%clk 0:02:36.7]} 24. Rxd1 {[%clk 0:01:25.7]} 24... Rd8 {[%clk 0:02:37]} 25.
Rxd8 {[%clk 0:01:21.6]} 25... Kxd8 {[%clk 0:02:37.9]} 26. Bd3 {[%clk 0:01:17.3]}
26... Be3 {[%clk 0:02:32.8]} 27. Kg3 {[%clk 0:01:16.8]} 27... c5 {[%clk
0:02:32.2]} 28. f4 {[%clk 0:01:16.5]} 28... Bd4 {[%clk 0:02:31.2]} 29. Bxd4
{[%clk 0:01:13]} 29... cxd4 {[%clk 0:02:32.1]} 30. f5 {[%clk 0:01:13.4]} 30...
Bh7 {[%clk 0:02:31.9]} 31. h4 {[%clk 0:01:11.5]} 31... Kc7 {[%clk 0:02:31.6]}
32. Kf4 {[%clk 0:01:07]} 32... Kc6 {[%clk 0:02:31.1]} 33. g5 {[%clk 0:01:03.4]}
33... hxg5+ {[%clk 0:02:28]} 34. Kxg5 {[%clk 0:01:00.4]} 34... Kc5 {[%clk
0:02:25.7]} 35. h5 {[%clk 0:00:51.8]} 35... Kb4 {[%clk 0:02:20]} 36. f6 {[%clk
0:00:51.9]} 36... gxf6+ {[%clk 0:02:18.2]} 37. exf6 {[%clk 0:00:42.2]} 37... Kc3
{[%clk 0:02:18.1]} 38. Kh6 {[%clk 0:00:42]} 38... Kxd3 {[%clk 0:02:12.6]} 39.
Kxh7 {[%clk 0:00:42.3]} 39... Kxe4 {[%clk 0:02:12.9]} 40. Kg7 {[%clk 0:00:42.6]}
40... d3 {[%clk 0:02:13.5]} 41. h6 {[%clk 0:00:39.1]} 41... d2 {[%clk
0:02:13.5]} 42. h7 {[%clk 0:00:39.5]} 42... d1=Q {[%clk 0:02:12]} 43. h8=Q
{[%clk 0:00:39.5]} 43... Qd7 {[%clk 0:01:49.4]} 44. Qh5 {[%clk 0:00:34]} 44...
e5 {[%clk 0:01:46.9]} 45. Qxf7 {[%clk 0:00:30.5]} 45... Qh3 {[%clk 0:01:40.3]}
46. Qg6+ {[%clk 0:00:07.1]} 46... Kd4 {[%clk 0:01:31.4]} 47. f7 {[%clk
0:00:07.4]} 47... Qd7 {[%clk 0:01:31.7]} 48. Qf6 {[%clk 0:00:04.9]} 48... Qg4+
{[%clk 0:01:29.6]} 49. Kh7 {[%clk 0:00:04.5]} 49... Qh5+ {[%clk 0:01:29]} 50.
Kg8 {[%clk 0:00:04.6]} 50... Qg4+ {[%clk 0:01:29.2]} 51. Qg7 {[%clk 0:00:04.3]}
51... Qe6 {[%clk 0:01:29.1]} 52. Qg5 {[%clk 0:00:03.6]} 52... e4 {[%clk
0:01:27.5]} 53. Kg7 {[%clk 0:00:03.6]} 53... e3 {[%clk 0:01:26.3]} 54. Qf6+
{[%clk 0:00:03.5]} 54... Qxf6+ {[%clk 0:01:25.9]} 55. Kxf6 {[%clk 0:00:03.8]}
55... e2 {[%clk 0:01:26.8]} 56. f8=Q {[%clk 0:00:03.4]} 56... e1=Q {[%clk
0:01:27.7]} 57. Qd6+ {[%clk 0:00:02.6]} 57... Kxc4 {[%clk 0:01:27.6]} 58. Qc7+
{[%clk 0:00:02.6]} 58... Kb4 {[%clk 0:01:23.9]} 59. Qxa7 {[%clk 0:00:02.5]}
59... Qc3+ {[%clk 0:01:22.8]} 60. Ke6 {[%clk 0:00:01.9]} 60... Qc5 {[%clk
0:01:22.9]} 61. Kd7 {[%clk 0:00:01.7]} 61... Kc3 {[%clk 0:01:22.3]} 0-1

[Event "Late-Titled-Tuesday-Blitz-June-04-2024"]
[Site "Chess.com"]
[Date "2024.06.04"]
[Round "4"]
[White "ShiroglanTalibov"]
[Black "nihalsarin"]
[Result "1-0"]
[WhiteElo "2920"]
[BlackElo "3231"]
[TimeControl "180+1"]
[EndTime "14:38:34 PDT"]
[Termination "ShiroglanTalibov won by resignation"]

1. e4 {[%clk 0:03:00.9]} 1... Nf6 {[%clk 0:02:59.6]} 2. e5 {[%clk 0:02:56.3]}
2... Nd5 {[%clk 0:02:59.1]} 3. c4 {[%clk 0:02:56.8]} 3... Nb6 {[%clk 0:02:58.4]}
4. d4 {[%clk 0:02:57.3]} 4... d5 {[%clk 0:02:52.2]} 5. c5 {[%clk 0:02:53.8]}
5... N6d7 {[%clk 0:02:52]} 6. Nc3 {[%clk 0:02:53.8]} 6... Nc6 {[%clk 0:02:49.6]}
7. Bg5 {[%clk 0:02:42.5]} 7... h6 {[%clk 0:02:46.1]} 8. Bh4 {[%clk 0:02:41.2]}
8... Ndb8 {[%clk 0:02:46.8]} 9. h3 {[%clk 0:02:33.6]} 9... Bf5 {[%clk
0:02:35.5]} 10. Nf3 {[%clk 0:02:32.1]} 10... g5 {[%clk 0:02:35.3]} 11. Bg3
{[%clk 0:02:31.7]} 11... e6 {[%clk 0:02:34.8]} 12. Bd3 {[%clk 0:02:31.8]} 12...
Bxd3 {[%clk 0:02:32]} 13. Qxd3 {[%clk 0:02:32.7]} 13... Na6 {[%clk 0:02:31.7]}
14. a3 {[%clk 0:02:31.6]} 14... Nab8 {[%clk 0:02:32]} 15. b4 {[%clk 0:02:30.3]}
15... a6 {[%clk 0:02:32]} 16. O-O {[%clk 0:02:26.3]} 16... h5 {[%clk 0:02:30.8]}
17. h4 {[%clk 0:02:22.1]} 17... gxh4 {[%clk 0:02:28.4]} 18. Bxh4 {[%clk
0:02:20.4]} 18... Be7 {[%clk 0:02:29.3]} 19. g3 {[%clk 0:02:19.2]} 19... Nd7
{[%clk 0:02:27.5]} 20. Ne2 {[%clk 0:02:18.2]} 20... Bxh4 {[%clk 0:02:18.5]} 21.
Nxh4 {[%clk 0:02:19.1]} 21... Qg5 {[%clk 0:02:18.9]} 22. Qe3 {[%clk 0:02:12.4]}
22... Qg4 {[%clk 0:02:15.8]} 23. Kh2 {[%clk 0:02:08.1]} 23... O-O-O {[%clk
0:02:15.6]} 24. f3 {[%clk 0:02:07.4]} 24... Qg7 {[%clk 0:02:15.3]} 25. Rab1
{[%clk 0:02:05.3]} 25... f6 {[%clk 0:02:11.2]} 26. f4 {[%clk 0:02:04.9]} 26...
Kb8 {[%clk 0:02:03.3]} 27. a4 {[%clk 0:02:04.4]} 27... fxe5 {[%clk 0:02:03.5]}
28. fxe5 {[%clk 0:02:05]} 28... Ndxe5 {[%clk 0:02:04.4]} 29. dxe5 {[%clk
0:01:59.4]} 29... Nxe5 {[%clk 0:02:05.3]} 30. Kh1 {[%clk 0:01:47.9]} 30... Nc4
{[%clk 0:02:04.3]} 31. Qd3 {[%clk 0:01:38.3]} 31... Qg4 {[%clk 0:01:59.2]} 32.
Kh2 {[%clk 0:01:37.7]} 32... e5 {[%clk 0:01:58.4]} 33. Ng1 {[%clk 0:01:30.8]}
33... Rhg8 {[%clk 0:01:55.5]} 34. Rb3 {[%clk 0:01:24.7]} 34... e4 {[%clk
0:01:51.4]} 35. Qd4 {[%clk 0:01:24.9]} 35... Rdf8 {[%clk 0:01:46.1]} 36. Rxf8+
{[%clk 0:00:49.8]} 36... Rxf8 {[%clk 0:01:47]} 37. Nh3 {[%clk 0:00:48.2]} 37...
e3 {[%clk 0:00:58.9]} 38. Qxg4 {[%clk 0:00:22.4]} 38... hxg4 {[%clk 0:00:59.8]}
39. Nf4 {[%clk 0:00:23]} 39... Nd2 {[%clk 0:00:59.3]} 40. Rd3 {[%clk 0:00:18]}
40... Rxf4 {[%clk 0:00:58.2]} 41. gxf4 {[%clk 0:00:15.4]} 41... e2 {[%clk
0:00:57.5]} 42. Ng2 {[%clk 0:00:14.4]} 42... Nc4 {[%clk 0:00:32.9]} 43. Rxd5
{[%clk 0:00:12.5]} 43... Ne3 {[%clk 0:00:33.4]} 44. Re5 {[%clk 0:00:09.7]} 44...
Nf1+ {[%clk 0:00:29]} 45. Kg1 {[%clk 0:00:09]} 45... Nd2 {[%clk 0:00:29.5]} 46.
Kf2 {[%clk 0:00:08.1]} 46... Nf3 {[%clk 0:00:27.9]} 47. Rxe2 {[%clk 0:00:07.8]}
47... Kc8 {[%clk 0:00:28.3]} 48. f5 {[%clk 0:00:07.9]} 48... Nd4 {[%clk
0:00:28.4]} 49. f6 {[%clk 0:00:07.8]} 49... Nxe2 {[%clk 0:00:29.1]} 50. f7
{[%clk 0:00:08.2]} 1-0

[Event "Late-Titled-Tuesday-Blitz-June-04-2024"]
[Site "Chess.com"]
[Date "2024.06.04"]
[Round "4"]
[White "Charodej1"]
[Black "traviscottofficial"]
[Result "0-1"]
[WhiteElo "2480"]
[BlackElo "2681"]
[TimeControl "180+1"]
[EndTime "14:38:34 PDT"]
[Termination "traviscottofficial won by resignation"]

1. e4 {[%clk 0:03:00.9]} 1... d6 {[%clk 0:02:56.8]} 2. d4 {[%clk 0:03:00.5]}
2... Nf6 {[%clk 0:02:57.2]} 3. Nc3 {[%clk 0:03:00.9]} 3... e5 {[%clk 0:02:57.8]}
4. Nf3 {[%clk 0:02:57.8]} 4... Nc6 {[%clk 0:02:56.9]} 5. Bb5 {[%clk 0:02:48.8]}
5... Bd7 {[%clk 0:02:56.8]} 6. O-O {[%clk 0:02:46.9]} 6... Be7 {[%clk
0:02:57.1]} 7. Re1 {[%clk 0:02:46.7]} 7... exd4 {[%clk 0:02:44.4]} 8. Nxd4
{[%clk 0:02:46.1]} 8... Nxd4 {[%clk 0:02:44.6]} 9. Qxd4 {[%clk 0:02:45.9]} 9...
Bxb5 {[%clk 0:02:43.5]} 10. Nxb5 {[%clk 0:02:45.7]} 10... O-O {[%clk 0:02:43.4]}
11. c4 {[%clk 0:02:37]} 11... Nd7 {[%clk 0:02:41.8]} 12. Nc3 {[%clk 0:02:24.3]}
12... Bf6 {[%clk 0:02:41.7]} 13. Qd1 {[%clk 0:01:57.1]} 13... Bxc3 {[%clk
0:02:38]} 14. bxc3 {[%clk 0:01:56.3]} 14... Ne5 {[%clk 0:02:38.2]} 15. Qd4
{[%clk 0:01:47.4]} 15... Qh4 {[%clk 0:02:27.7]} 16. Rf1 {[%clk 0:01:26.3]} 16...
Nc6 {[%clk 0:02:16.6]} 17. Qd5 {[%clk 0:01:19.2]} 17... Rfe8 {[%clk 0:02:15]}
18. f4 {[%clk 0:01:13.6]} 18... Qe7 {[%clk 0:02:05.9]} 19. Re1 {[%clk
0:01:10.8]} 19... Qe6 {[%clk 0:02:03.5]} 20. Bd2 {[%clk 0:01:07.1]} 20... Qxd5
{[%clk 0:01:57.4]} 21. cxd5 {[%clk 0:01:06]} 21... Na5 {[%clk 0:01:57.5]} 22.
Rad1 {[%clk 0:00:51.6]} 22... Re7 {[%clk 0:01:46.7]} 23. Bc1 {[%clk 0:00:49.3]}
23... Rae8 {[%clk 0:01:46.4]} 24. Rd4 {[%clk 0:00:48.7]} 24... f5 {[%clk
0:01:43.6]} 25. e5 {[%clk 0:00:44]} 25... dxe5 {[%clk 0:01:42.8]} 26. fxe5
{[%clk 0:00:34.7]} 26... Rxe5 {[%clk 0:01:42.2]} 27. Rxe5 {[%clk 0:00:35.6]}
27... Rxe5 {[%clk 0:01:42.4]} 28. Bf4 {[%clk 0:00:36.5]} 28... Re7 {[%clk
0:01:34.2]} 29. Ra4 {[%clk 0:00:29]} 29... b6 {[%clk 0:01:33.6]} 30. Kf2 {[%clk
0:00:28.2]} 30... Kf7 {[%clk 0:01:28.3]} 31. c4 {[%clk 0:00:22.7]} 31... Re4
{[%clk 0:01:17.7]} 32. Bxc7 {[%clk 0:00:22]} 32... Rxc4 {[%clk 0:01:18.3]} 33.
Rxc4 {[%clk 0:00:13.2]} 33... Nxc4 {[%clk 0:01:19.2]} 34. Bb8 {[%clk 0:00:13.8]}
34... a5 {[%clk 0:01:17.3]} 35. Ke2 {[%clk 0:00:14.2]} 35... b5 {[%clk
0:01:15.6]} 36. Kd3 {[%clk 0:00:14]} 36... Ke7 {[%clk 0:01:15.2]} 37. Kd4 {[%clk
0:00:14.5]} 37... Nb6 {[%clk 0:00:56.7]} 38. Bf4 {[%clk 0:00:10.3]} 38... Nd7
{[%clk 0:00:55.1]} 39. Bd2 {[%clk 0:00:09.3]} 39... a4 {[%clk 0:00:49.5]} 40.
Bb4+ {[%clk 0:00:09]} 40... Kf6 {[%clk 0:00:49.7]} 41. Bd6 {[%clk 0:00:08.7]}
41... g5 {[%clk 0:00:48.4]} 42. h3 {[%clk 0:00:08.4]} 42... f4 {[%clk
0:00:48.3]} 43. a3 {[%clk 0:00:07.2]} 43... Kf5 {[%clk 0:00:48.4]} 44. Bb8
{[%clk 0:00:06.4]} 44... h5 {[%clk 0:00:48.4]} 45. Bc7 {[%clk 0:00:06.2]} 45...
g4 {[%clk 0:00:48.3]} 46. d6 {[%clk 0:00:05.1]} 46... g3 {[%clk 0:00:37.5]} 47.
Kd5 {[%clk 0:00:04.8]} 47... f3 {[%clk 0:00:37.3]} 48. Kc6 {[%clk 0:00:05.2]}
48... Ne5+ {[%clk 0:00:36.9]} 49. Kb7 {[%clk 0:00:03.7]} 49... f2 {[%clk
0:00:37.6]} 0-1

[Event "Late-Titled-Tuesday-Blitz-June-04-2024"]
[Site "Chess.com"]
[Date "2024.06.04"]
[Round "4"]
[White "stollenmonster"]
[Black "Kombinator01"]
[Result "1-0"]
[WhiteElo "2868"]
[BlackElo "2489"]
[TimeControl "180+1"]
[EndTime "14:38:40 PDT"]
[Termination "stollenmonster won by resignation"]

1. e4 {[%clk 0:03:00.9]} 1... c5 {[%clk 0:03:00.5]} 2. Nf3 {[%clk 0:03:00.5]}
2... e6 {[%clk 0:03:00.9]} 3. Be2 {[%clk 0:03:00.2]} 3... Nf6 {[%clk 0:03:00.7]}
4. Nc3 {[%clk 0:02:59.8]} 4... d5 {[%clk 0:02:59.4]} 5. exd5 {[%clk 0:03:00.7]}
5... Nxd5 {[%clk 0:02:59.6]} 6. O-O {[%clk 0:02:59.4]} 6... Nxc3 {[%clk
0:02:59.3]} 7. dxc3 {[%clk 0:02:56.4]} 7... Qxd1 {[%clk 0:02:57.6]} 8. Rxd1
{[%clk 0:02:57.3]} 8... Nc6 {[%clk 0:02:56.7]} 9. Bb5 {[%clk 0:02:55.4]} 9...
Bd7 {[%clk 0:02:56.8]} 10. Bf4 {[%clk 0:02:55.5]} 10... f6 {[%clk 0:02:56.3]}
11. Bd6 {[%clk 0:02:48.9]} 11... a6 {[%clk 0:02:51.4]} 12. Bc4 {[%clk
0:02:38.4]} 12... O-O-O {[%clk 0:02:41.1]} 13. a4 {[%clk 0:02:29.6]} 13... Be7
{[%clk 0:02:31]} 14. Rd2 {[%clk 0:02:07.4]} 14... Rhe8 {[%clk 0:02:20.8]} 15.
Rad1 {[%clk 0:02:05.9]} 15... Bxd6 {[%clk 0:02:17]} 16. Rxd6 {[%clk 0:02:06.8]}
16... Na5 {[%clk 0:02:08]} 17. Ba2 {[%clk 0:01:59.8]} 17... e5 {[%clk
0:01:52.9]} 18. b4 {[%clk 0:01:49.9]} 18... Nc6 {[%clk 0:01:39.5]} 19. bxc5
{[%clk 0:01:36.8]} 19... Bg4 {[%clk 0:01:29.6]} 20. Bd5 {[%clk 0:01:24.3]} 20...
Rxd6 {[%clk 0:01:23.3]} 21. cxd6 {[%clk 0:01:25.2]} 21... Kd7 {[%clk 0:01:17.3]}
22. h3 {[%clk 0:01:14.7]} 22... Bxf3 {[%clk 0:01:15.1]} 23. Bxf3 {[%clk
0:01:13]} 23... g6 {[%clk 0:01:01.5]} 24. Rb1 {[%clk 0:01:11.6]} 24... Kxd6
{[%clk 0:00:48.6]} 25. Rxb7 {[%clk 0:01:09.4]} 25... e4 {[%clk 0:00:38.3]} 26.
Be2 {[%clk 0:01:08.7]} 26... a5 {[%clk 0:00:33.9]} 27. Bb5 {[%clk 0:01:06.5]}
27... Rc8 {[%clk 0:00:32.5]} 28. Rb6 {[%clk 0:00:43.7]} 28... Kc5 {[%clk
0:00:32.5]} 29. Ra6 {[%clk 0:00:44.1]} 29... f5 {[%clk 0:00:30.6]} 30. Kf1
{[%clk 0:00:39.4]} 30... f4 {[%clk 0:00:25.3]} 31. Ke2 {[%clk 0:00:39.6]} 31...
g5 {[%clk 0:00:25.4]} 32. g3 {[%clk 0:00:28.9]} 32... h6 {[%clk 0:00:22.2]} 33.
h4 {[%clk 0:00:28]} 33... gxh4 {[%clk 0:00:19.4]} 34. gxf4 {[%clk 0:00:21.9]}
34... h3 {[%clk 0:00:18.3]} 35. Kf1 {[%clk 0:00:22.4]} 35... Rg8 {[%clk
0:00:12.3]} 36. Rxc6+ {[%clk 0:00:20.7]} 36... Kd5 {[%clk 0:00:12.8]} 37. Rxh6
{[%clk 0:00:20.6]} 37... e3 {[%clk 0:00:13.7]} 38. Rxh3 {[%clk 0:00:17.4]} 38...
Rg1+ {[%clk 0:00:11.8]} 39. Ke2 {[%clk 0:00:17.1]} 39... exf2 {[%clk 0:00:11.8]}
40. Kxf2 {[%clk 0:00:17]} 40... Rc1 {[%clk 0:00:12.7]} 41. Rd3+ {[%clk
0:00:16.8]} 41... Kc5 {[%clk 0:00:13.2]} 42. Rd2 {[%clk 0:00:16.7]} 42... Rh1
{[%clk 0:00:12.2]} 43. Kg2 {[%clk 0:00:16.2]} 43... Rh4 {[%clk 0:00:12]} 44. Kg3
{[%clk 0:00:16]} 44... Rh8 {[%clk 0:00:12.3]} 45. f5 {[%clk 0:00:15.7]} 45...
Rg8+ {[%clk 0:00:12.6]} 46. Kf4 {[%clk 0:00:15.8]} 46... Rf8 {[%clk 0:00:13.5]}
1-0